fUST/lending_fUST_20250627
["ID","MTS","AMOUNT","RATE_DAILY","PERIOD"]
[368122016,1751031038492,-805.47,0.00019452,2]
[368122017,1751031038501,-460.0,0.00019452,2]
[368122018,1751031038511,-460.0,0.00019452,2]
[368122019,1751031038520,-460.0,0.00019452,2]
[368122020,1751031038529,-460.0,0.00019452,2]
[368122021,1751031038538,-460.0,0.00019452,2]
[368122022,1751031038547,-1058.8,0.00019452,2]
[368122023,1751031038557,-460.0,0.00019452,2]
[368122024,1751031038566,-702.87,0.00019452,2]
[368122025,1751031038575,-460.0,0.00019452,2]
[368122026,1751031038584,-460.0,0.00019452,2]
[368122027,1751031038593,-2033.0,0.00019452,2]
[368122028,1751031038602,-460.0,0.00019452,2]
[368122029,1751031038612,-460.0,0.00019452,2]
[368122030,1751031038621,-460.0,0.00019452,2]
[368122031,1751031038630,-1504.5,0.00019452,2]
[368122032,1751031038639,-460.0,0.00019452,2]
[368122033,1751031038650,-460.0,0.00019452,2]
[368122034,1751031038662,-1784.64,0.00019452,2]
[368122035,1751031038672,-1131.52,0.00019452,2]
[368122036,1751031038681,-460.0,0.00019452,2]
[368122037,1751031038691,-460.0,0.00019452,2]
[368122038,1751031038700,-460.0,0.00019452,2]
[368122039,1751031038709,-487.57,0.00019452,2]
[368122041,1751031038720,-1564.81,0.00019452,2]
[368122042,1751031038730,-460.0,0.00019452,2]
[368122043,1751031038739,-460.0,0.00019452,2]
[368122044,1751031038749,-460.0,0.00019452,2]
[368122045,1751031038759,-677.9,0.00019452,2]
[368122046,1751031038768,-460.0,0.00019452,2]
[368122047,1751031038777,-746.52,0.00019452,2]
[368122048,1751031038787,-1364.75093309,0.00019626,2]
[368122049,1751031038797,-224.00444455,0.000197,2]
[368122050,1751031038806,-500.0,0.00019704,2]
[368122051,1751031038816,-500.0,0.00019725,2]
[368122052,1751031038826,-500.0,0.00019725,2]
[368122053,1751031038835,-460.0,0.00019726,2]
[368122054,1751031038844,-460.0,0.00019726,2]
[368122055,1751031038853,-270.0,0.00019726,2]
[368122056,1751031038863,-460.0,0.00019726,2]
[368122057,1751031038872,-460.0,0.00019726,2]
[368122058,1751031038881,-460.0,0.00019726,2]
[368122059,1751031038891,-460.0,0.00019726,2]
[368122060,1751031038900,-460.0,0.00019726,2]
[368122061,1751031038909,-473.35861997,0.00019726,2]
[368122062,1751031038920,-460.0,0.00019726,2]
[368122063,1751031038930,-460.0,0.00019726,2]
[368122064,1751031038939,-255.98505231,0.00019726,2]
[368122065,1751031038948,-460.0,0.00019726,2]
[368122066,1751031038957,-460.0,0.00019726,2]
[368122067,1751031038967,-460.0,0.00019726,2]
[368122068,1751031038976,-460.0,0.00019726,2]
[368122069,1751031038986,-460.0,0.00019726,2]
[368122070,1751031038996,-460.0,0.00019726,2]
[368122071,1751031039006,-460.0,0.00019726,2]
[368122072,1751031039015,-460.0,0.00019726,2]
[368122073,1751031039025,-460.0,0.00019726,2]
[368122074,1751031039035,-663.57,0.00019726,2]
[368122075,1751031039044,-460.0,0.00019726,2]
[368122076,1751031039053,-460.0,0.00019726,2]
[368122077,1751031039063,-460.0,0.00019726,2]
[368122078,1751031039072,-2172.8,0.00019726,2]
[368122079,1751031039082,-460.0,0.00019726,2]
[368122080,1751031039091,-460.0,0.00019726,2]
[368122081,1751031039101,-265.3,0.00019726,2]
[368122082,1751031039113,-460.0,0.00019726,2]
[368122083,1751031039123,-460.0,0.00019726,2]
[368122084,1751031039132,-562.41,0.00019726,2]
[368122085,1751031039142,-460.0,0.00019726,2]
[368122086,1751031039151,-1866.01,0.00019726,2]
[368122087,1751031039162,-799.59,0.00019726,2]
[368122088,1751031039171,-460.0,0.00019726,2]
[368122089,1751031039180,-460.0,0.00019726,2]
[368122090,1751031039190,-460.0,0.00019726,2]
[368122091,1751031039198,-460.0,0.00019726,2]
[368122092,1751031039208,-460.0,0.00019726,2]
[368122093,1751031039217,-460.0,0.00019726,2]
[368122094,1751031039227,-460.0,0.00019726,2]
[368122095,1751031039238,-805.47,0.00019726,2]
[368122096,1751031039247,-460.0,0.00019726,2]
[368122097,1751031039257,-460.0,0.00019726,2]
[368122098,1751031039266,-460.0,0.00019726,2]
[368122099,1751031039275,-460.0,0.00019726,2]
[368122100,1751031039285,-460.0,0.00019726,2]
[368122101,1751031039294,-1058.8,0.00019726,2]
[368122102,1751031039303,-460.0,0.00019726,2]
[368122103,1751031039312,-702.87,0.00019726,2]
[368122104,1751031039321,-460.0,0.00019726,2]
[368122105,1751031039330,-460.0,0.00019726,2]
[368122106,1751031039340,-2033.0,0.00019726,2]
[368122107,1751031039349,-532.45193826,0.00019726,2]
[368122108,1751031039358,-460.0,0.00019726,2]
[368122109,1751031039367,-460.0,0.00019726,2]
[368122110,1751031039376,-1504.5,0.00019726,2]
[368122111,1751031039385,-460.0,0.00019726,2]
[368122112,1751031039395,-1784.64,0.00019726,2]
[368122113,1751031039404,-1131.52,0.00019726,2]
[368122114,1751031039413,-460.0,0.00019726,2]
[368122115,1751031039423,-487.57,0.00019726,2]
[368122116,1751031039432,-1564.81,0.00019726,2]
[368122117,1751031039444,-460.0,0.00019726,2]
[368122118,1751031039457,-493.4168238,0.00019726,2]
[368122119,1751031039472,-460.0,0.00019726,2]
[368122120,1751031039485,-677.9,0.00019726,2]
[368122121,1751031039497,-460.0,0.00019726,2]
[368122122,1751031039511,-746.52,0.00019726,2]
[368122123,1751031039523,-500.0,0.00019877,2]
[368122124,1751031039534,-500.0,0.00019899,2]
[368122125,1751031039547,-500.0,0.000199,2]
[368122126,1751031039560,-5619.81153915,0.000199,2]
[368122127,1751031039571,-500.0,0.0001992,2]
[368122128,1751031039583,-500.0,0.00019921,2]
[368122129,1751031039594,-500.0,0.00019922,2]
[368122130,1751031039605,-500.0,0.00019922,2]
[368122131,1751031039617,-500.0,0.00019936,2]
[368122132,1751031039628,-151.0,0.00019978,2]
[368122133,1751031039640,-500.0,0.00019989,2]
[368122134,1751031039653,-500.0,0.00019989,2]
[368122135,1751031039664,-500.0,0.00019989,2]
[368122136,1751031039677,-500.0,0.00019989,2]
[368122137,1751031039689,-520.57,0.00019989,2]
[368122138,1751031039701,-100000.0,0.0001999,2]
[368122139,1751031039712,-460.0,0.0002,2]
[368122140,1751031039723,-460.0,0.0002,2]
[368122141,1751031039734,-460.0,0.0002,2]
[368122142,1751031039745,-506.55491528,0.0002,2]
[368122143,1751031039757,-460.0,0.0002,2]
[368122145,1751031039769,-460.0,0.0002,2]
[368122146,1751031039780,-460.0,0.0002,2]
[368122147,1751031039791,-460.0,0.0002,2]
[368122148,1751031039806,-460.0,0.0002,2]
[368122149,1751031039818,-460.0,0.0002,2]
[368122150,1751031039829,-460.0,0.0002,2]
[368122151,1751031039840,-460.0,0.0002,2]
[368122152,1751031039851,-460.0,0.0002,2]
[368122153,1751031039861,-663.57,0.0002,2]
[368122154,1751031039872,-460.0,0.0002,2]
[368122155,1751031039882,-460.0,0.0002,2]
[368122156,1751031039893,-460.0,0.0002,2]
[368122157,1751031039905,-2172.8,0.0002,2]
[368122158,1751031039915,-460.0,0.0002,2]
[368122159,1751031039927,-460.0,0.0002,2]
[368122160,1751031039939,-460.0,0.0002,2]
[368122161,1751031039951,-460.0,0.0002,2]
[368122162,1751031039962,-562.41,0.0002,2]
[368122163,1751031039974,-460.0,0.0002,2]
[368122164,1751031039985,-1866.01,0.0002,2]
[368122165,1751031039996,-799.59,0.0002,2]
[368122166,1751031040008,-460.0,0.0002,2]
[368122167,1751031040020,-460.0,0.0002,2]
[368122168,1751031040031,-460.0,0.0002,2]
[368122169,1751031040043,-460.0,0.0002,2]
[368122170,1751031040055,-460.0,0.0002,2]
[368122171,1751031040068,-460.0,0.0002,2]
[368122172,1751031040078,-460.0,0.0002,2]
[368122174,1751031040088,-805.47,0.0002,2]
[368122175,1751031040098,-460.0,0.0002,2]
[368122177,1751031040108,-259.33,0.0002,2]
[368122179,1751031040119,-460.0,0.0002,2]
[368122180,1751031040130,-460.0,0.0002,2]
[368122183,1751031040141,-460.0,0.0002,2]
[368122185,1751031040153,-1058.8,0.0002,2]
[368122187,1751031040167,-460.0,0.0002,2]
[368122189,1751031040179,-702.87,0.0002,2]
[368122192,1751031040191,-460.0,0.0002,2]
[368122194,1751031040200,-460.0,0.0002,2]
[368122196,1751031040210,-2033.0,0.0002,2]
[368122198,1751031040222,-460.0,0.0002,2]
[368122200,1751031040234,-460.0,0.0002,2]
[368122202,1751031040244,-1504.5,0.0002,2]
[368122204,1751031040255,-394.1,0.0002,2]
[368122205,1751031040267,-1784.64,0.0002,2]
[368122206,1751031040278,-1131.52,0.0002,2]
[368122207,1751031040288,-460.0,0.0002,2]
[368122208,1751031040299,-487.57,0.0002,2]
[368122209,1751031040311,-1564.81,0.0002,2]
[368122210,1751031040322,-460.0,0.0002,2]
[368122212,1751031040333,-677.9,0.0002,2]
[368122213,1751031040344,-460.0,0.0002,2]
[368122214,1751031040354,-746.52,0.0002,2]
[368122215,1751031040364,-190.14283766,0.00020028,2]
[368122216,1751031040375,-5619.81153914,0.00020107,2]
[368122217,1751031040386,-5000.0,0.0002027,2]
[368122218,1751031040396,-500.0,0.0002027,2]
[368122219,1751031040406,-500.0,0.0002027,2]
[368122220,1751031040416,-359.07977781,0.0002027,2]
[368122221,1751031040427,-207.4,0.0002027,2]
[368122222,1751031040437,-346.74976442,0.00020273,2]
[368122223,1751031040448,-460.0,0.00020273,2]
[368122224,1751031040459,-460.0,0.00020273,2]
[368122225,1751031040473,-460.0,0.00020273,2]
[368122226,1751031040485,-460.0,0.00020273,2]
[368122227,1751031040497,-460.0,0.00020273,2]
[368122228,1751031040507,-460.0,0.00020273,2]
[368122229,1751031040517,-589.90277001,0.00020273,2]
[368122230,1751031040527,-460.0,0.00020273,2]
[368122231,1751031040538,-663.57,0.00020273,2]
[368122232,1751031040548,-460.0,0.00020273,2]
[368122233,1751031040559,-460.0,0.00020273,2]
[368122234,1751031040569,-460.0,0.00020273,2]
[368122235,1751031040580,-2172.8,0.00020273,2]
[368122236,1751031040590,-460.0,0.00020273,2]
[368122237,1751031040601,-460.0,0.00020273,2]
[368122238,1751031040612,-460.0,0.00020273,2]
[368122239,1751031040622,-460.0,0.00020273,2]
[368122240,1751031040633,-562.41,0.00020273,2]
[368122241,1751031040643,-460.0,0.00020273,2]
[368122242,1751031040654,-1866.01,0.00020273,2]
[368122243,1751031040664,-799.59,0.00020273,2]
[368122244,1751031040675,-460.0,0.00020273,2]
[368122245,1751031040686,-460.0,0.00020273,2]
[368122246,1751031040696,-460.0,0.00020273,2]
[368122247,1751031040707,-460.0,0.00020273,2]
[368122248,1751031040718,-460.0,0.00020273,2]
[368122249,1751031040728,-460.0,0.00020273,2]
[368122250,1751031040740,-805.47,0.00020273,2]
[368122251,1751031040750,-460.0,0.00020273,2]
[368122252,1751031040760,-460.0,0.00020273,2]
[368122253,1751031040771,-460.0,0.00020273,2]
[368122254,1751031040781,-1058.8,0.00020273,2]
[368122255,1751031040791,-335.97207344,0.00020273,2]
[368122256,1751031040802,-702.87,0.00020273,2]
[368122257,1751031040812,-460.0,0.00020273,2]
[368122258,1751031040823,-460.0,0.00020273,2]
[368122259,1751031040833,-2033.0,0.00020273,2]
[368122260,1751031040844,-460.0,0.00020273,2]
[368122261,1751031040855,-460.0,0.00020273,2]
[368122262,1751031040864,-1504.5,0.00020273,2]
[368122263,1751031040875,-1784.64,0.00020273,2]
[368122264,1751031040886,-460.0,0.00020273,2]
[368122265,1751031040896,-1131.52,0.00020273,2]
[368122266,1751031040907,-487.57,0.00020273,2]
[368122267,1751031040917,-1564.81,0.00020273,2]
[368122268,1751031040928,-460.0,0.00020273,2]
[368122269,1751031040939,-677.9,0.00020273,2]
[368122270,1751031040949,-460.0,0.00020273,2]
[368122271,1751031040959,-746.52,0.00020273,2]
[368122272,1751031040970,-213.75309343,0.00020314,3]
[368122273,1751031040981,-501.96309613,0.00020314,3]
[368122274,1751031040998,-12562.41216491,0.00020314,3]
[368122275,1751031041010,-5619.81153914,0.00020314,3]
[368122276,1751031041021,-1364.75093305,0.00020325,2]
[368122277,1751031041032,-160.0,0.0002039,2]
[368122278,1751031041043,-160.0,0.0002039,2]
[368122279,1751031041055,-214.91804724,0.0002039,2]
[368122280,1751031041066,-836.98798914,0.0002039,2]
[368122281,1751031041077,-230.26210603,0.0002039,2]
[368122282,1751031041087,-160.0,0.00020392,2]
[368122283,1751031041098,-160.0,0.00020392,2]
[368122284,1751031041107,-160.0,0.00020392,2]
[368122285,1751031041117,-160.0,0.00020392,2]
[368122286,1751031041126,-160.0,0.00020392,2]
[368122287,1751031041296,-12562.41216491,0.00020392,2]
[368122288,1751031041307,-1005.13555698,0.00020448,2]
[368122289,1751031041316,-500.0,0.00020468,2]
[368122290,1751031041326,-626.04116076,0.0002047,2]
[368122291,1751031041335,-501.09377109,0.00020484,2]
[368122292,1751031041344,-5619.81153914,0.00020521,3]
[368122293,1751031041353,-460.0,0.00020547,2]
[368122294,1751031041362,-460.0,0.00020547,2]
[368122295,1751031041371,-460.0,0.00020547,2]
[368122296,1751031041381,-460.0,0.00020547,2]
[368122297,1751031041390,-460.0,0.00020547,2]
[368122298,1751031041399,-663.57,0.00020547,2]
[368122299,1751031041408,-460.0,0.00020547,2]
[368122300,1751031041417,-460.0,0.00020547,2]
[368122301,1751031041426,-460.0,0.00020547,2]
[368122302,1751031041435,-2172.8,0.00020547,2]
[368122303,1751031041444,-460.0,0.00020547,2]
[368122304,1751031041454,-460.0,0.00020547,2]
[368122305,1751031041466,-460.0,0.00020547,2]
[368122306,1751031041475,-460.0,0.00020547,2]
[368122307,1751031041486,-562.41,0.00020547,2]
[368122308,1751031041495,-460.0,0.00020547,2]
[368122309,1751031041507,-1866.01,0.00020547,2]
[368122310,1751031041517,-799.59,0.00020547,2]
[368122311,1751031041527,-460.0,0.00020547,2]
[368122312,1751031041537,-460.0,0.00020547,2]
[368122313,1751031041546,-460.0,0.00020547,2]
[368122314,1751031041556,-460.0,0.00020547,2]
[368122315,1751031041565,-460.0,0.00020547,2]
[368122316,1751031041575,-460.0,0.00020547,2]
[368122317,1751031041584,-805.47,0.00020547,2]
[368122318,1751031041593,-460.0,0.00020547,2]
[368122319,1751031041603,-280.16415811,0.00020547,2]
[368122320,1751031041612,-460.0,0.00020547,2]
[368122321,1751031041621,-460.0,0.00020547,2]
[368122322,1751031041630,-1058.8,0.00020547,2]
[368122323,1751031041640,-702.87,0.00020547,2]
[368122324,1751031041649,-460.0,0.00020547,2]
[368122325,1751031041658,-460.0,0.00020547,2]
[368122326,1751031041668,-2033.0,0.00020547,2]
[368122327,1751031041677,-460.0,0.00020547,2]
[368122328,1751031041686,-460.0,0.00020547,2]
[368122329,1751031041695,-1504.5,0.00020547,2]
[368122330,1751031041704,-1784.64,0.00020547,2]
[368122331,1751031041714,-1131.52,0.00020547,2]
[368122332,1751031041723,-460.0,0.00020547,2]
[368122333,1751031041733,-487.57,0.00020547,2]
[368122334,1751031041742,-1564.81,0.00020547,2]
[368122335,1751031041752,-460.0,0.00020547,2]
[368122336,1751031041762,-677.9,0.00020547,2]
[368122337,1751031041771,-460.0,0.00020547,2]
[368122338,1751031041781,-746.52,0.00020547,2]
[368122339,1751031041790,-2802.33,0.000206,2]
[368122340,1751031041803,-5619.81153914,0.00020728,3]
[368122341,1751031041812,-460.0,0.00020821,2]
[368122342,1751031041823,-460.0,0.00020821,2]
[368122343,1751031041832,-323.52142907,0.00020821,2]
[368122344,1751031041842,-460.0,0.00020821,2]
[368122345,1751031041853,-455.97514626,0.00020821,2]
[368122346,1751031041864,-663.57,0.00020821,2]
[368122347,1751031041874,-460.0,0.00020821,2]
[368122348,1751031041883,-460.0,0.00020821,2]
[368122349,1751031041893,-460.0,0.00020821,2]
[368122350,1751031041903,-2172.8,0.00020821,2]
[368122351,1751031041913,-460.0,0.00020821,2]
[368122352,1751031041922,-460.0,0.00020821,2]
[368122353,1751031041931,-460.0,0.00020821,2]
[368122354,1751031041940,-460.0,0.00020821,2]
[368122355,1751031041949,-562.41,0.00020821,2]
[368122356,1751031041959,-460.0,0.00020821,2]
[368122357,1751031041969,-1866.01,0.00020821,2]
[368122358,1751031041979,-799.59,0.00020821,2]
[368122359,1751031041988,-460.0,0.00020821,2]
[368122360,1751031041998,-460.0,0.00020821,2]
[368122361,1751031042007,-460.0,0.00020821,2]
[368122362,1751031042017,-460.0,0.00020821,2]
[368122363,1751031042027,-460.0,0.00020821,2]
[368122364,1751031042036,-460.0,0.00020821,2]
[368122365,1751031042045,-805.47,0.00020821,2]
[368122366,1751031042055,-460.0,0.00020821,2]
[368122367,1751031042064,-460.0,0.00020821,2]
[368122368,1751031042074,-460.0,0.00020821,2]
[368122369,1751031042083,-1058.8,0.00020821,2]
[368122370,1751031042093,-702.87,0.00020821,2]
[368122371,1751031042102,-460.0,0.00020821,2]
[368122372,1751031042111,-460.0,0.00020821,2]
[368122373,1751031042121,-2033.0,0.00020821,2]
[368122374,1751031042131,-460.0,0.00020821,2]
[368122375,1751031042141,-460.0,0.00020821,2]
[368122376,1751031042150,-1504.5,0.00020821,2]
[368122377,1751031042159,-1131.52,0.00020821,2]
[368122378,1751031042168,-460.0,0.00020821,2]
[368122379,1751031042178,-1784.64,0.00020821,2]
[368122380,1751031042187,-487.57,0.00020821,2]
[368122381,1751031042197,-1564.81,0.00020821,2]
[368122382,1751031042206,-460.0,0.00020821,2]
[368122383,1751031042216,-677.9,0.00020821,2]
[368122384,1751031042225,-460.0,0.00020821,2]
[368122385,1751031042235,-746.52,0.00020821,2]
[368122386,1751031042244,-420.0,0.00020899,2]
[368122387,1751031042254,-5619.81153914,0.00020934,4]
[368122388,1751031042263,-190.14283766,0.00020979,2]
[368122389,1751031042273,-168.626327,0.00021,2]
[368122390,1751031042282,-168.626327,0.00021,2]
[368122391,1751031042291,-197.698769,0.00021,2]
[368122392,1751031042301,-197.698769,0.00021,2]
[368122393,1751031042311,-1364.75093305,0.00021024,2]
[368122394,1751031042320,-460.0,0.00021095,2]
[368122395,1751031042330,-460.0,0.00021095,2]
[368122396,1751031042339,-460.0,0.00021095,2]
[368122397,1751031042348,-663.57,0.00021095,2]
[368122398,1751031042357,-460.0,0.00021095,2]
[368122399,1751031042366,-460.0,0.00021095,2]
[368122400,1751031042376,-460.0,0.00021095,2]
[368122401,1751031042385,-2172.8,0.00021095,2]
[368122402,1751031042394,-460.0,0.00021095,2]
[368122403,1751031042404,-460.0,0.00021095,2]
[368122404,1751031042413,-460.0,0.00021095,2]
[368122405,1751031042422,-460.0,0.00021095,2]
[368122406,1751031042433,-562.41,0.00021095,2]
[368122407,1751031042444,-460.0,0.00021095,2]
[368122408,1751031042456,-1866.01,0.00021095,2]
[368122409,1751031042467,-799.59,0.00021095,2]
[368122410,1751031042478,-460.0,0.00021095,2]
[368122411,1751031042487,-460.0,0.00021095,2]
[368122412,1751031042496,-460.0,0.00021095,2]
[368122414,1751031042506,-460.0,0.00021095,2]
[368122415,1751031042517,-460.0,0.00021095,2]
[368122416,1751031042526,-460.0,0.00021095,2]
[368122417,1751031042535,-805.47,0.00021095,2]
[368122418,1751031042546,-460.0,0.00021095,2]
[368122419,1751031042556,-460.0,0.00021095,2]
[368122420,1751031042566,-460.0,0.00021095,2]
[368122421,1751031042576,-1058.8,0.00021095,2]
[368122422,1751031042585,-702.87,0.00021095,2]
[368122423,1751031042606,-460.0,0.00021095,2]
[368122424,1751031042616,-460.0,0.00021095,2]
[368122426,1751031042626,-2033.0,0.00021095,2]
[368122427,1751031042636,-460.0,0.00021095,2]
[368122428,1751031042645,-460.0,0.00021095,2]
[368122430,1751031042655,-1504.5,0.00021095,2]
[368122431,1751031042665,-1131.52,0.00021095,2]
[368122432,1751031042675,-460.0,0.00021095,2]
[368122433,1751031042685,-1784.64,0.00021095,2]
[368122434,1751031042694,-487.57,0.00021095,2]
[368122435,1751031042704,-1564.81,0.00021095,2]
[368122436,1751031042714,-460.0,0.00021095,2]
[368122437,1751031042724,-677.9,0.00021095,2]
[368122438,1751031042733,-460.0,0.00021095,2]
[368122439,1751031042743,-746.52,0.00021095,2]
[368122440,1751031042752,-5619.81153914,0.00021141,4]
[368122441,1751031042762,-795.873,0.00021155,2]
[368122442,1751031042771,-504.0,0.00021336,2]
[368122443,1751031042781,-5619.81153914,0.00021348,5]
[368122444,1751031042791,-504.0,0.00021368,2]
[368122445,1751031042801,-460.0,0.00021369,2]
[368122446,1751031042811,-460.0,0.00021369,2]
[368122447,1751031042820,-242.40407043,0.00021369,2]
[368122448,1751031042831,-663.57,0.00021369,2]
[368122449,1751031042840,-460.0,0.00021369,2]
[368122450,1751031042850,-460.0,0.00021369,2]
[368122451,1751031042859,-460.0,0.00021369,2]
[368122452,1751031042869,-2172.8,0.00021369,2]
[368122453,1751031042879,-460.0,0.00021369,2]
[368122454,1751031042888,-460.0,0.00021369,2]
[368122455,1751031042898,-460.0,0.00021369,2]
[368122456,1751031042909,-494.77576769,0.00021369,2]
[368122457,1751031042918,-562.41,0.00021369,2]
[368122458,1751031042927,-460.0,0.00021369,2]
[368122459,1751031042938,-1866.01,0.00021369,2]
[368122460,1751031042947,-799.59,0.00021369,2]
[368122461,1751031042958,-460.0,0.00021369,2]
[368122462,1751031042969,-460.0,0.00021369,2]
[368122463,1751031042978,-460.0,0.00021369,2]
[368122464,1751031042987,-460.0,0.00021369,2]
[368122465,1751031042997,-460.0,0.00021369,2]
[368122466,1751031043007,-460.0,0.00021369,2]
[368122467,1751031043017,-805.47,0.00021369,2]
[368122468,1751031043026,-460.0,0.00021369,2]
[368122469,1751031043036,-460.0,0.00021369,2]
[368122470,1751031043045,-460.0,0.00021369,2]
[368122471,1751031043055,-1058.8,0.00021369,2]
[368122472,1751031043064,-702.87,0.00021369,2]
[368122473,1751031043073,-460.0,0.00021369,2]
[368122474,1751031043083,-460.0,0.00021369,2]
[368122475,1751031043092,-2033.0,0.00021369,2]
[368122476,1751031043102,-460.0,0.00021369,2]
[368122477,1751031043112,-460.0,0.00021369,2]
[368122478,1751031043121,-1504.5,0.00021369,2]
[368122479,1751031043131,-460.0,0.00021369,2]
[368122480,1751031043141,-1131.52,0.00021369,2]
[368122481,1751031043150,-1784.64,0.00021369,2]
[368122482,1751031043160,-487.57,0.00021369,2]
[368122484,1751031043171,-1564.81,0.00021369,2]
[368122485,1751031043180,-460.0,0.00021369,2]
[368122486,1751031043189,-677.9,0.00021369,2]
[368122487,1751031043199,-460.0,0.00021369,2]
[368122488,1751031043209,-746.52,0.00021369,2]
[368122490,1751031043218,-504.0,0.00021387,2]
[368122492,1751031043228,-157.976659,0.00021404,2]
[368122493,1751031043238,-2161.0,0.00021405,2]
[368122494,1751031043247,-654.0,0.00021405,2]
[368122495,1751031043257,-406.0,0.00021405,2]
[368122496,1751031043268,-966.0,0.00021405,2]
[368122497,1751031043277,-504.0,0.00021459,2]
[368122498,1751031043287,-5619.81153914,0.00021555,5]
[368122499,1751031043296,-215.0738,0.00021639,2]
[368122500,1751031043306,-168.626327,0.00021643,2]
[368122501,1751031043315,-168.626327,0.00021643,2]
[368122502,1751031043325,-197.698769,0.00021643,2]
[368122503,1751031043334,-197.698769,0.00021643,2]
[368122504,1751031043344,-460.0,0.00021643,2]
[368122505,1751031043353,-460.0,0.00021643,2]
[368122506,1751031043363,-663.57,0.00021643,2]
[368122507,1751031043373,-460.0,0.00021643,2]
[368122508,1751031043382,-460.0,0.00021643,2]
[368122509,1751031043391,-460.0,0.00021643,2]
[368122510,1751031043400,-2172.8,0.00021643,2]
[368122511,1751031043410,-460.0,0.00021643,2]
[368122512,1751031043419,-460.0,0.00021643,2]
[368122513,1751031043429,-460.0,0.00021643,2]
[368122514,1751031043438,-562.41,0.00021643,2]
[368122515,1751031043447,-460.0,0.00021643,2]
[368122516,1751031043457,-1866.01,0.00021643,2]
[368122517,1751031043469,-799.59,0.00021643,2]
[368122518,1751031043479,-249.0193823,0.00021643,2]
[368122519,1751031043489,-460.0,0.00021643,2]
[368122520,1751031043498,-460.0,0.00021643,2]
[368122521,1751031043508,-460.0,0.00021643,2]
[368122522,1751031043518,-460.0,0.00021643,2]
[368122523,1751031043527,-460.0,0.00021643,2]
[368122524,1751031043537,-805.47,0.00021643,2]
[368122525,1751031043547,-460.0,0.00021643,2]
[368122526,1751031043557,-460.0,0.00021643,2]
[368122527,1751031043566,-460.0,0.00021643,2]
[368122528,1751031043576,-1058.8,0.00021643,2]
[368122529,1751031043585,-702.87,0.00021643,2]
[368122530,1751031043595,-460.0,0.00021643,2]
[368122531,1751031043604,-495.61,0.00021643,2]
[368122533,1751031043614,-2033.0,0.00021643,2]
[368122534,1751031043623,-460.0,0.00021643,2]
[368122535,1751031043633,-460.0,0.00021643,2]
[368122536,1751031043643,-1504.5,0.00021643,2]
[368122537,1751031043652,-500.32406015,0.00021643,2]
[368122538,1751031043662,-1131.52,0.00021643,2]
[368122539,1751031043673,-1784.64,0.00021643,2]
[368122540,1751031043685,-487.57,0.00021643,2]
[368122541,1751031043695,-1564.81,0.00021643,2]